bitfinex/quotes_ETHUSD_20250529
["timestamp","ask_amount","ask_price","bid_price","bid_amount"]
[1748522888609,0.30780331,2690.8,2690.0,1.84463566]
[1748522888810,0.30780331,2690.8,2690.0,9.84463566]
[1748522889011,0.05,2690.9,2690.4,5.56154666]
[1748522889214,0.05,2690.9,2690.4,1.84463566]
[1748522889463,0.05,2690.9,2690.5,3.71671199]
[1748522889611,0.05,2690.9,2690.6,3.71664309]
[1748522890011,0.05,2690.9,2690.7,3.71650499]
[1748522890236,0.05,2690.9,2690.4,13.56146603]
[1748522890438,0.05,2690.9,2690.5,3.71675687]
[1748522890658,0.05,2690.9,2690.4,13.56146379]
[1748522890967,0.05,2690.9,2690.6,3.7165255]
[1748522891271,0.05,2690.9,2690.4,9.84463566]
[1748522891427,0.05,2690.9,2690.6,3.71664312]
[1748522891627,0.05,2690.9,2690.4,9.84463566]
[1748522891965,0.05,2690.9,2690.5,3.71675509]
[1748522892441,0.05,2690.9,2690.4,9.84463566]
[1748522892442,0.05,2690.9,2690.4,13.56149996]
[1748522892750,0.05,2690.9,2690.7,3.71642601]
[1748522893261,0.05,2690.9,2690.7,3.71643566]
[1748522893456,0.05,2690.9,2690.5,3.71671161]
[1748522893659,0.05,2690.9,2690.4,9.84463566]
[1748522893861,3.71670236,2690.6,2690.0,1.852]
[1748522894077,8.84459952,2690.7,2690.0,19.852]
[1748522894390,8.84451386,2690.7,2690.1,3.71733392]
[1748522894582,5.128,2690.7,2690.0,5.56937724]
[1748522894720,5.128,2690.7,2690.0,1.852]
[1748522895068,3.71749633,2690.0,2689.4,10.0]
[1748522895285,5.127,2689.9,2688.7,5.28953566]
[1748522895568,5.127,2689.9,2688.3,5.127]
[1748522895569,3.71802498,2689.6,2688.3,1.5929]
[1748522895779,3.71968457,2688.4,2688.3,0.31052434]
[1748522895923,3.71955045,2688.5,2688.3,0.31052434]
[1748522895924,3.7195967,2688.5,2688.3,0.31052434]
[1748522896119,8.84640869,2688.6,2688.3,0.31052434]
[1748522896349,8.84643749,2688.6,2688.3,0.31052434]
[1748522896554,5.127,2688.6,2688.3,0.31052434]
[1748522896719,3.71962241,2688.5,2688.3,0.31052434]
[1748522896919,5.127,2688.6,2688.3,0.31052434]
[1748522896920,8.84645397,2688.6,2688.3,0.31052434]
[1748522897116,3.71968457,2688.4,2688.3,0.31052434]
[1748522898895,1.6649,2689.0,2688.3,0.31052434]
[1748522899029,5.128,2688.9,2688.4,3.71967942]
[1748522899234,1.6649,2689.0,2688.5,3.71954621]
[1748522899476,5.128,2688.9,2688.6,3.71932317]
[1748522899697,1.6649,2689.0,2688.1,7.265616]
[1748522899984,5.128,2689.0,2688.2,8.7265616]
[1748522900184,5.128,2689.0,2688.4,3.71964358]
[1748522900701,3.71915457,2688.8,2688.2,8.0]
[1748522900991,3.7192686,2688.8,2688.2,8.0]
[1748522901272,5.128,2689.0,2688.2,8.0]
[1748522901675,5.128,2689.0,2688.5,3.71945297]
[1748522901872,3.71867152,2689.2,2688.6,3.71938008]
[1748522902167,5.128,2689.2,2688.6,3.7193041]
[1748522902341,8.84660115,2689.2,2688.6,3.7193041]
[1748522902542,3.71816322,2689.5,2688.9,3.71890864]
[1748522902750,1.5503,2689.6,2688.1,1.7009]
[1748522902751,5.128,2689.4,2688.1,1.7009]
[1748522902948,3.71905079,2688.9,2688.3,8.0]
[1748522903254,3.71909427,2688.9,2688.3,11.71979413]
[1748522903458,0.55,2689.3,2688.2,11.71991869]
[1748522903664,4.26843974,2689.3,2688.4,3.71960893]
[1748522903831,0.55,2689.3,2688.5,3.71952215]
[1748522904034,3.71857801,2689.2,2688.2,11.71986029]
[1748522904249,3.71884926,2689.1,2688.4,3.71958025]
[1748522904427,3.71895181,2689.0,2688.4,3.71958025]
[1748522904633,4.26827823,2689.5,2688.7,3.71918368]
[1748522904950,5.26838145,2689.6,2689.0,3.71875971]
[1748522905162,5.128,2689.5,2689.0,3.71875971]
[1748522905542,5.128,2689.5,2688.9,3.71891887]
[1748522905845,3.71853141,2689.3,2688.7,1.853]
[1748522906048,3.71853141,2689.3,2688.7,5.57225775]
[1748522906435,3.71853141,2689.3,2688.7,1.853]
[1748522906630,3.71856412,2689.3,2688.7,1.853]
[1748522906964,3.71861519,2689.2,2688.7,1.853]
[1748522907160,3.71861519,2689.2,2688.7,5.57226942]
[1748522907359,3.71851096,2689.3,2688.7,5.57226942]
[1748522907671,3.71851458,2689.3,2688.7,5.57217057]
[1748522907971,5.127,2689.3,2688.8,3.71913121]
[1748522908286,5.127,2689.3,2688.7,5.57219612]
[1748522908486,8.84544553,2689.3,2688.8,8.0]
[1748522908820,5.127,2689.3,2688.8,3.71912119]
[1748522909102,3.0,2689.1,2688.9,3.71891378]
[1748522909588,3.0,2689.1,2689.0,3.71885459]
[1748522910290,5.126,2689.3,2688.9,3.71894384]
[1748522910648,5.126,2689.3,2688.8,11.71905936]
[1748522910844,5.126,2689.3,2688.9,3.71898243]
[1748522911050,5.126,2689.5,2689.0,3.307697]
[1748522911266,5.126,2689.5,2689.0,8.0]
[1748522911484,5.126,2689.5,2689.1,3.71860487]
[1748522912195,5.26832859,2689.6,2689.0,8.0]
[1748522912196,5.26832859,2689.6,2689.0,11.71879243]
[1748522912363,5.126,2689.5,2689.0,11.71879243]
[1748522913148,5.126,2689.5,2689.0,8.0]
[1748522913361,5.126,2689.5,2689.0,11.71877868]
[1748522913773,5.126,2689.5,2689.0,11.71878126]
[1748522913976,8.84418033,2689.5,2689.0,8.0]
[1748522914174,10.39337562,2689.6,2689.0,11.71877176]
[1748522914395,6.6753,2689.6,2689.1,3.71867419]
[1748522914704,10.39333372,2689.6,2689.1,3.71867419]
[1748522914909,0.55,2690.3,2689.2,8.0]
[1748522915067,8.84226138,2690.2,2689.4,3.71822803]
[1748522915406,5.125,2690.1,2689.8,3.71767341]
[1748522915613,1.6615,2690.7,2689.8,1.852]
[1748522915614,5.37805841,2690.7,2689.8,1.852]
[1748522915817,5.124,2690.6,2690.1,3.7173235]
[1748522915974,5.124,2690.6,2690.2,3.71719447]
[1748522916511,5.124,2690.6,2690.1,3.71728253]
[1748522916713,5.37807301,2690.7,2690.1,3.71732766]
[1748522917040,5.37807301,2690.7,2689.9,5.56218588]
[1748522917041,3.71685301,2690.5,2689.9,5.56218588]
[1748522917175,5.124,2690.6,2690.0,3.71740572]
[1748522917371,8.84069793,2690.6,2689.9,7.41423896]
[1748522917577,3.71669793,2690.6,2690.0,3.71739585]
[1748522917777,5.37158327,2691.1,2690.5,8.0]
[1748522918008,1.6555,2691.1,2690.5,8.0]
[1748522918379,5.123,2691.0,2690.6,3.71663538]
[1748522918716,5.123,2691.0,2690.5,3.71675925]
[1748522918895,10.4945851,2691.1,2690.5,3.71675925]
[1748522919618,10.49452322,2691.1,2690.2,10.0]
[1748522919823,6.7785,2691.1,2690.7,3.71649811]
[1748522919992,5.123,2691.1,2690.4,11.71689113]
[1748522920314,8.83895807,2691.1,2690.5,3.71671436]
[1748522920921,3.71619617,2691.0,2690.4,11.71689232]
[1748522921128,3.71616127,2691.0,2690.4,3.71684877]
[1748522921344,8.83902541,2691.1,2690.5,3.71665476]
[1748522921499,3.71609915,2691.0,2690.4,11.71682719]
[1748522921683,8.83897717,2691.1,2690.5,3.71672895]
[1748522921882,5.123,2691.1,2690.5,3.71672895]
[1748522922114,8.83896908,2691.1,2690.4,11.71684463]
[1748522922316,6.71661479,2690.7,2690.2,9.845]
[1748522922516,6.71661479,2690.7,2690.5,8.0]
[1748522922517,3.0,2690.7,2690.5,8.0]
[1748522922717,3.0,2690.7,2690.5,3.71675392]
[1748522922923,3.0,2690.7,2690.4,8.0]
[1748522923141,3.0,2690.7,2690.4,11.71683771]
[1748522923351,3.71689333,2690.5,2689.6,1.845]
[1748522923557,1.5822,2690.9,2689.9,9.84463566]
[1748522923723,1.5822,2690.9,2690.2,8.0]
[1748522923724,5.12,2690.6,2690.2,8.0]
[1748522923916,5.12,2690.6,2690.1,8.0]
[1748522924259,5.12,2690.6,2690.2,3.71716714]
[1748522924567,5.12,2690.6,2690.3,3.71696206]
[1748522925649,5.12,2690.6,2690.4,3.71691672]
[1748522926850,0.05,2690.9,2690.6,3.7165902]
[1748522927009,0.05,2690.9,2690.7,5.56139639]
[1748522927211,0.05,2690.9,2690.8,3.71636687]
[1748522927448,0.05,2690.9,2690.7,5.56143693]
[1748522927755,0.05,2690.9,2690.7,1.845]
[1748522929882,6.6981,2690.9,2690.2,1.844]
[1748522930184,3.71662879,2690.7,2690.2,1.844]
[1748522930339,3.71669114,2690.6,2690.2,1.844]
[1748522930865,6.6981,2690.9,2690.2,1.844]
[1748522931064,3.71664637,2690.6,2690.2,1.844]
[1748522931479,5.115,2690.6,2690.2,1.844]
[1748522931678,3.71658196,2690.7,2690.2,9.844]
[1748522931858,5.29837448,2690.9,2690.2,9.844]
[1748522931859,8.83164956,2690.6,2690.2,9.844]
[1748522932046,3.71678126,2690.5,2690.2,9.844]
[1748522932241,8.83170467,2690.6,2690.2,9.844]
[1748522932443,4.81678885,2690.5,2690.2,1.844]
[1748522933141,1.1,2690.5,2690.2,1.844]
[1748522933755,4.81680967,2690.5,2690.2,1.844]
[1748522933956,3.71705185,2690.4,2690.2,1.844]
[1748522934378,4.81685722,2690.5,2690.2,1.844]
[1748522935158,1.1,2690.5,2690.2,1.844]
[1748522935347,1.1,2690.5,2690.0,8.0]
[1748522935548,3.71726939,2690.2,2690.0,8.0]
[1748522935800,3.71691941,2690.4,2690.0,8.0]
[1748522935999,4.81684484,2690.5,2690.0,8.0]
[1748522936175,1.1,2690.5,2690.1,3.7173277]
[1748522936497,1.1,2690.5,2690.1,3.71732284]
[1748522936656,1.1,2690.5,2690.2,3.71713667]
[1748522936861,1.1,2690.5,2690.1,3.71726776]
[1748522937368,1.1,2690.5,2690.1,3.71733392]
[1748522937587,1.1,2690.5,2690.3,3.71698171]
[1748522937899,1.1,2690.5,2690.4,13.55703572]
[1748522938098,0.05,2690.9,2690.4,1.84011631]
[1748522938256,0.05,2690.9,2690.4,5.55695604]
[1748522938718,0.05,2690.9,2690.6,3.71655279]
[1748522939022,0.05,2690.9,2690.4,1.84011631]
[1748522939196,0.05,2690.9,2690.5,3.71667225]
[1748522939399,0.05,2690.9,2690.4,5.55695831]
[1748522939617,0.05,2690.9,2690.4,5.55702442]
[1748522939798,0.05,2690.9,2690.7,8.0]
[1748522940007,0.05,2690.9,2690.8,11.71636687]
[1748522940192,0.05,2690.9,2690.8,8.0]
[1748522941622,0.05,2690.9,2690.8,11.71636687]
[1748522941824,0.05,2690.9,2690.8,8.0]
[1748522942141,3.71642703,2690.8,2690.6,1.844]
[1748522942326,6.76630496,2690.9,2690.6,1.844]
[1748522942496,5.109,2690.8,2690.6,1.844]
[1748522944717,0.05,2690.9,2690.6,1.844]
[1748522945016,0.05,2690.9,2690.2,1.5869]
[1748522945219,1.5473,2690.8,2690.3,1.844]
[1748522945446,3.71681002,2690.5,2690.3,1.844]
[1748522945717,3.71670083,2690.6,2690.3,1.844]
[1748522945924,3.71684902,2690.5,2690.1,1.844]
[1748522946467,3.71685285,2690.5,2690.1,1.844]
[1748522946937,8.82262418,2690.7,2690.2,8.0]
[1748522947263,3.71665037,2690.6,2690.2,8.0]
[1748522947459,1.2,2690.5,2690.1,1.844]
[1748522947819,1.2,2690.5,2690.2,8.0]
[1748522948015,1.2,2690.5,2690.2,1.24191868]
[1748522948259,1.2,2690.5,2690.3,8.0]
[1748522948474,1.2,2690.5,2690.2,8.0]
[1748522948835,1.2,2690.5,2690.2,3.71719378]
[1748522949371,1.2,2690.5,2690.2,3.71712014]
[1748522949775,1.2,2690.5,2690.2,8.0]
[1748522950072,1.2,2690.5,2690.3,11.71705742]
[1748522950373,1.2,2690.5,2690.3,8.0]
[1748522951280,0.05,2690.9,2690.4,1.84011631]
[1748522951434,0.05,2690.9,2690.4,3.67211631]
[1748522951775,3.71640898,2690.8,2690.4,1.84011631]
[1748522951979,3.76630157,2690.9,2690.4,9.84011631]
[1748522952274,0.05,2690.9,2690.4,13.5569755]
[1748522952653,0.05,2690.9,2690.5,3.71676172]
[1748522952945,0.05,2690.9,2690.4,13.55697195]
[1748522953339,0.05,2690.9,2690.5,3.71676214]
[1748522953864,3.71663934,2690.7,2690.1,3.71726371]
[1748522954067,3.71636687,2690.8,2690.0,5.54939197]
[1748522954380,3.71658361,2690.7,2690.0,1.832]
[1748522954537,8.86728708,2690.9,2690.2,11.71715972]
[1748522954941,3.71636687,2690.8,2690.2,11.71715972]
[1748522955477,0.55,2690.8,2689.9,9.86311631]
[1748522955650,0.55,2690.8,2690.0,1.832]
[1748522955651,3.7169968,2690.4,2690.0,1.832]
[1748522955979,3.71685672,2690.5,2690.0,5.54946152]
[1748522956351,0.55,2690.8,2690.0,5.54946152]
[1748522956352,8.86724352,2690.9,2690.2,3.71716607]
[1748522956681,0.05,2690.9,2690.7,3.71642801]
[1748522956978,0.05,2690.9,2690.7,11.71644335]
[1748522957579,0.05,2690.9,2690.8,3.71636687]
[1748522958707,0.05,2690.9,2690.8,11.71636687]
[1748522959202,0.05,2690.9,2690.8,8.0]
[1748522962302,0.05,2690.9,2690.8,11.71636687]
[1748522962499,0.05,2690.9,2690.8,8.0]
[1748522962807,0.05,2690.9,2690.8,11.71636687]
[1748522963011,0.05,2690.9,2690.8,9.54328575]
[1748522963164,0.05,2690.9,2690.8,11.71636687]
[1748522964966,0.05,2690.9,2690.8,13.54836687]
[1748522966871,3.71479173,2692.0,2691.4,3.71543648]
[1748522967071,2.08292937,2692.3,2691.3,3.71566762]
[1748522967072,5.089,2692.1,2691.3,1.84011631]
[1748522967271,0.55,2692.0,2691.3,5.55569329]
[1748522967471,0.55,2692.0,2691.3,1.84011631]
[1748522967472,4.26476848,2692.0,2691.3,1.84011631]
[1748522967786,4.26472777,2692.0,2691.4,3.71548195]
[1748522967995,3.71473002,2692.0,2691.5,3.71538588]
[1748522968609,8.80273002,2692.0,2691.5,3.71538588]
[1748522968795,3.71473002,2692.0,2691.5,3.71538588]
[1748522969109,5.088,2692.0,2691.5,3.71538588]
[1748522969312,5.087,2692.0,2691.4,11.71551603]
[1748522969517,3.71391111,2692.6,2691.8,15.13390256]
[1748522969687,1.5237,2692.8,2691.8,15.13390256]
[1748522969688,3.71436509,2692.3,2691.8,8.0]
[1748522969891,5.087,2692.5,2691.8,11.71498625]
[1748522970091,1.5237,2692.8,2691.8,11.71498625]
[1748522970510,5.086,2692.5,2691.8,11.71498625]
[1748522970802,8.7998904,2692.6,2691.8,11.71498625]
[1748522971180,8.79995207,2692.6,2691.8,11.71498625]
[1748522971527,5.085,2692.5,2691.8,11.71498625]
[1748522972592,8.799135,2692.5,2691.8,11.71498625]
[1748522972812,3.71450952,2692.2,2691.6,5.55529097]
[1748522973010,3.71437177,2692.3,2691.7,3.71509868]
[1748522973341,3.71419459,2692.4,2691.4,9.5788]
[1748522973582,5.635,2692.5,2691.7,3.71505346]
[1748522973752,3.71437259,2692.3,2691.8,3.71498625]
[1748522974391,9.34907106,2692.5,2691.8,3.71498625]
[1748522974590,3.71430927,2692.3,2691.7,3.7150621]
[1748522974825,3.71453581,2692.2,2691.6,0.36331318]
[1748522975030,3.71476998,2692.0,2691.3,9.831]
[1748522975339,5.23575049,2692.1,2691.5,3.71534765]
[1748522975488,3.71520618,2691.7,2691.3,10.1971333]
[1748522975690,0.05,2691.9,2691.8,3.71498625]
[1748522975898,1.6603,2692.6,2691.3,0.3661333]
[1748522976215,5.08,2692.5,2692.0,3.71465835]
[1748522976409,1.6603,2692.6,2692.1,3.71445492]
[1748522976722,5.37424705,2692.6,2692.0,3.71464674]
[1748522976925,5.37424705,2692.6,2691.8,3.47071631]
[1748522976926,1.6603,2692.6,2691.8,3.47071631]
[1748522977130,1.6603,2692.6,2692.0,3.71461442]
[1748522977366,1.6603,2692.6,2692.1,3.71446694]
[1748522977666,1.6603,2692.6,2692.2,3.71431717]
[1748522978146,5.36210194,2692.9,2692.4,3.71413962]
[1748522978327,8.7916138,2692.8,2692.2,1.84011631]
[1748522978547,8.7916138,2692.8,2692.2,5.55449053]
[1748522978732,1.6486,2692.9,2692.2,1.84011631]
[1748522978952,3.71361,2692.8,2692.3,3.71429549]
[1748522979132,5.36214475,2692.9,2692.3,3.71427277]
[1748522979335,0.55,2692.8,2692.0,0.36887344]
[1748522979539,8.78961625,2692.8,2692.2,3.71435958]
[1748522979737,8.78961625,2692.8,2692.3,3.71427979]
[1748522980137,8.78961625,2692.8,2692.1,3.71457226]
[1748522980469,5.076,2692.7,2692.0,1.831]
[1748522980768,8.78979834,2692.7,2692.1,3.7144891]
[1748522980970,8.78979834,2692.7,2692.0,5.91559425]
[1748522980971,5.076,2692.7,2692.2,3.71441291]
[1748522981278,3.71410004,2692.5,2692.0,2.20091262]
[1748522981422,3.71410004,2692.5,2692.0,12.20091262]
[1748522981617,8.78983302,2692.7,2692.1,3.71450309]
[1748522981866,3.71383302,2692.7,2692.1,3.71450309]
[1748522982013,8.78783302,2692.7,2692.1,3.71447488]
[1748522982219,3.71390071,2692.6,2692.1,3.71447488]
[1748522982451,3.71403656,2692.5,2692.0,15.91556103]
[1748522982667,5.074,2692.7,2692.0,12.20091262]
[1748522982883,5.074,2692.7,2691.2,0.37967353]
[1748522982884,3.71560595,2691.4,2691.2,0.37967353]
[1748522983032,3.71539189,2691.6,2691.0,3.7160346]
[1748522983228,3.71539189,2691.6,2691.1,8.0]
[1748522983671,3.71567669,2691.3,2690.8,3.3435]
[1748522983969,5.34703317,2691.5,2690.9,13.71614988]
[1748522984276,3.71554921,2691.4,2690.9,13.71614988]
[1748522984418,1.6316,2691.5,2690.9,13.71614988]
[1748522984620,1.6316,2691.5,2690.9,10.0]
[1748522984920,1.6316,2691.5,2691.2,3.71575267]
[1748522985168,1.5124,2691.9,2691.3,3.71556324]
[1748522985373,1.5124,2691.9,2690.8,3.65311631]
[1748522985374,1.5124,2691.9,2691.4,3.71550622]
[1748522985666,1.5124,2691.9,2691.5,3.71527232]
[1748522985815,1.5124,2691.9,2691.2,1.84011631]
[1748522986019,0.55,2691.8,2690.8,1.84011631]
[1748522986323,3.71618017,2691.0,2690.4,7.36995367]
[1748522986524,1.5806,2691.1,2690.6,3.7165722]
[1748522986821,5.2961865,2691.4,2690.8,3.71629972]
[1748522987047,3.71603116,2691.1,2690.5,3.71676806]
[1748522987376,0.55,2691.3,2690.5,8.0]
[1748522987554,0.55,2691.3,2690.4,10.0]
[1748522987555,3.71605172,2691.1,2690.6,3.71662662]
[1748522988086,3.71605172,2691.1,2690.5,3.71671019]
[1748522988215,3.71609345,2691.0,2690.5,3.71671019]
[1748522988585,3.71582745,2691.2,2690.5,3.71671457]
[1748522988586,5.069,2690.9,2690.5,3.71671457]
[1748522988767,5.069,2690.9,2690.3,9.813]
[1748522988768,3.71643082,2690.8,2690.3,9.813]
[1748522988920,1.5854,2690.7,2690.3,1.813]
[1748522989345,6.6524,2690.7,2690.3,1.813]
[1748522989544,6.6524,2690.7,2690.3,5.52998636]
[1748522989943,6.6524,2690.7,2690.4,3.7169089]
[1748522990346,6.6524,2690.7,2690.3,1.813]
[1748522990543,1.5226,2691.1,2690.5,3.71665129]
[1748522990848,5.066,2691.0,2690.5,3.71665129]
[1748522991025,3.71648303,2690.8,2690.3,1.813]
[1748522991224,4.26626363,2690.9,2690.3,5.52995088]
[1748522991420,3.71643891,2690.8,2690.3,1.813]
[1748522991640,0.55,2690.9,2690.3,1.813]
[1748522991965,5.065,2690.9,2690.4,3.71688933]
[1748522992138,5.065,2690.9,2690.3,1.813]
[1748522992356,5.065,2690.9,2690.5,3.71675743]
[1748522992746,1.5226,2691.1,2690.7,3.71643076]
[1748522992948,5.064,2691.0,2690.8,3.71636284]
[1748522993159,5.064,2691.0,2690.5,1.84011631]
[1748522993160,5.064,2691.0,2690.7,3.71643542]
[1748522993790,5.064,2691.0,2690.6,3.71653358]
[1748522993949,5.064,2691.0,2690.7,3.71643394]
[1748522994157,5.064,2691.0,2690.5,1.84011631]
[1748522994492,5.238595,2691.1,2690.5,5.55682323]
[1748522994646,5.063,2691.0,2690.5,1.84011631]
[1748522994850,8.77922395,2691.0,2690.5,1.84011631]
[1748522995148,5.063,2691.0,2690.5,1.84011631]
[1748522995401,5.063,2691.0,2690.3,1.813]
[1748522995550,5.063,2691.0,2690.5,3.71671135]
[1748522995751,8.77909565,2691.0,2690.5,3.71671135]
[1748522996048,5.063,2691.0,2690.5,3.71671135]
[1748522996275,8.77910036,2691.0,2690.5,3.71671135]
[1748522996479,5.061,2690.9,2690.4,3.71691941]
[1748522996686,5.061,2690.9,2690.5,3.71671038]
[1748522996886,5.061,2690.9,2690.6,3.71663277]
[1748522997088,5.061,2690.9,2690.5,3.71672911]
[1748522997461,5.061,2690.9,2690.4,3.7168481]
[1748522997986,5.061,2690.9,2690.3,1.813]
[1748522997987,8.77731142,2690.9,2690.3,9.813]
[1748522998284,5.061,2690.9,2690.3,13.52999515]
[1748522998623,5.061,2690.9,2690.4,3.71691538]
[1748522998792,3.71663335,2690.7,2690.1,0.05]
[1748522998954,1.5226,2691.1,2690.2,3.71719574]
[1748522999160,3.71638156,2690.8,2690.1,3.76727419]
[1748522999463,5.609,2691.0,2690.1,3.76727419]
[1748522999464,3.71680569,2690.5,2690.1,0.05]
[1748522999669,5.058,2690.6,2690.1,0.05]
[1748523000204,5.058,2690.6,2690.2,3.71713568]
[1748523000372,3.71681036,2690.5,2690.1,0.42485751]
[1748523000576,5.058,2690.6,2690.3,3.71704768]
[1748523000761,5.058,2690.6,2690.2,3.71714223]
[1748523000762,5.057,2690.6,2690.2,3.71714223]
[1748523001163,8.77373447,2690.6,2690.1,3.71732405]
[1748523001488,5.057,2690.6,2689.9,8.023]
[1748523001664,5.057,2690.6,2690.3,3.71696717]
[1748523001869,3.71614513,2691.0,2690.4,3.71683789]
[1748523002174,3.71614513,2691.0,2690.5,3.71677018]
[1748523002175,3.71616856,2691.0,2690.5,3.71677018]
[1748523002377,1.5226,2691.1,2690.0,5.55752294]
[1748523002378,1.5226,2691.1,2690.1,3.71733392]
[1748523002707,1.6446,2691.5,2691.0,3.71597182]
[1748523003008,5.055,2691.4,2690.8,5.55643834]
[1748523003168,5.055,2691.4,2690.8,3.71632203]
[1748523003362,5.055,2691.4,2690.6,1.5227]
[1748523003363,8.77059938,2691.4,2690.9,3.71613167]
[1748523003564,5.055,2691.4,2690.5,3.71666845]
[1748523003771,3.71620807,2691.0,2690.3,3.71695489]
[1748523004008,8.77020807,2691.0,2690.3,3.71695489]
[1748523004320,0.55,2690.7,2689.9,8.40075359]
[1748523004519,3.71715348,2690.3,2689.9,8.023]
[1748523004717,5.053,2690.2,2689.9,8.023]
[1748523004890,8.7702155,2690.2,2689.9,8.023]
[1748523005813,5.053,2690.2,2689.9,8.023]
[1748523006854,5.051,2690.4,2689.9,8.023]
[1748523007138,5.051,2690.4,2690.0,3.71745633]
[1748523007273,5.051,2690.4,2689.9,11.74054267]
[1748523007485,5.051,2690.4,2690.0,8.0]
[1748523007486,0.55,2690.4,2690.0,8.0]
[1748523007728,5.05,2690.3,2690.1,3.71731283]
[1748523007883,5.05,2690.3,2690.0,8.0]
[1748523008286,3.71728999,2690.2,2689.9,8.02299998]
[1748523009459,0.55,2690.1,2689.1,3.40776421]
[1748523009736,3.71747211,2690.0,2689.4,11.71826437]
[1748523009879,0.55,2690.1,2689.1,1.864]
[1748523009880,0.55,2690.1,2689.7,3.71785088]
[1748523010084,5.048,2690.0,2689.5,3.7181411]
[1748523010338,3.71763698,2689.9,2689.4,8.0]
[1748523010551,0.55,2690.1,2689.1,1.864]
[1748523010552,3.71802498,2689.6,2689.1,1.864]
[1748523010687,0.55,2689.7,2689.1,1.864]
[1748523010688,5.047,2689.5,2689.1,5.58263303]
[1748523011043,5.047,2689.5,2689.1,1.864]
[1748523011682,5.047,2689.5,2689.1,5.58271086]
[1748523012086,5.047,2689.5,2689.1,1.864]
[1748523012520,3.7183746,2689.4,2689.1,1.864]
[1748523012716,5.047,2689.5,2689.1,1.864]
[1748523012930,5.047,2689.5,2689.1,5.58270347]
[1748523013142,5.36268916,2689.8,2689.1,5.58270347]
[1748523013143,1.6449,2689.8,2689.1,2.83123489]
[1748523013348,5.045,2689.7,2689.4,3.71822433]
[1748523013682,5.045,2689.7,2689.1,0.05]
[1748523013817,3.71809974,2689.6,2689.1,0.05]
[1748523014017,3.71809974,2689.6,2689.1,3.76871479]
[1748523014216,3.71809974,2689.6,2689.1,0.05]
[1748523014434,0.55,2689.5,2689.1,0.05]
[1748523014640,4.26857801,2689.2,2689.1,0.05]
[1748523014975,9.31157801,2689.2,2689.1,0.05]
[1748523017209,10.82637801,2689.2,2689.1,0.05]
[1748523018612,10.82637801,2689.2,2688.1,0.05]
[1748523018613,5.22506131,2688.2,2688.1,0.05]
[1748523018797,10.81506131,2688.2,2688.1,0.05]
[1748523019632,10.81406131,2688.2,2688.1,0.05]
[1748523021110,1.6657,2688.6,2688.1,0.05]
[1748523021444,4.15374413,2689.6,2688.1,0.05]
[1748523021445,5.038,2688.5,2688.3,3.7198111]
[1748523021607,5.038,2688.5,2688.2,4.09697215]
[1748523021608,5.038,2688.5,2688.2,4.09690658]
[1748523021809,5.038,2688.5,2688.2,3.71989]
[1748523022113,5.37874721,2688.9,2688.2,3.71989]
[1748523022114,5.037,2688.6,2688.3,8.0]
[1748523022442,5.037,2688.6,2688.5,3.71954621]
[1748523023254,5.036,2688.7,2688.3,11.71982127]
[1748523023415,5.036,2688.7,2688.3,11.71979452]
[1748523023783,5.036,2688.7,2688.4,3.71966564]
[1748523024255,5.036,2688.7,2688.3,8.0]
[1748523024461,3.71951373,2688.6,2688.2,8.0]
[1748523024665,5.034,2688.5,2688.1,1.842]
[1748523025256,5.034,2688.5,2687.9,5.34851284]
[1748523025257,8.7535473,2688.5,2687.9,5.34850317]
[1748523025424,5.034,2688.5,2688.1,3.72003631]
[1748523025614,5.033,2688.4,2688.2,3.71995841]
[1748523025810,4.26918493,2688.8,2688.3,3.71978558]
[1748523026051,5.033,2688.7,2688.3,3.71978558]
[1748523026349,4.26918493,2688.8,2688.1,3.72008203]
[1748523026350,4.26919835,2688.8,2688.2,3.71988014]
[1748523026558,5.032,2688.7,2687.9,0.55911934]
[1748523026729,1.5938,2688.6,2687.6,0.37305359]
[1748523026931,5.032,2688.5,2688.0,3.72014908]
[1748523027312,5.31322009,2688.6,2688.1,3.72006805]
[1748523027516,5.031,2688.5,2688.1,3.72006805]
[1748523028230,5.031,2688.4,2688.0,3.72014119]
[1748523028794,5.031,2688.4,2688.0,13.72014119]
[1748523028950,5.031,2688.4,2688.0,10.0]
[1748523029162,3.71992453,2688.3,2687.9,8.0]
[1748523029649,8.75076238,2688.4,2687.9,8.0]
[1748523029872,8.75076238,2688.4,2687.9,11.72036501]
[1748523030158,8.75076238,2688.4,2687.7,3.72063983]
[1748523030159,3.72004168,2688.2,2687.7,8.0]
[1748523030339,3.72018117,2688.1,2687.7,8.0]
[1748523030545,1.5993,2687.9,2687.5,1.793]
[1748523030855,5.31972062,2687.9,2687.5,1.793]
[1748523031057,5.31973729,2687.9,2687.5,1.793]
[1748523031360,5.31975747,2687.9,2687.5,1.793]
[1748523031559,1.5993,2687.9,2687.5,1.793]
[1748523031731,5.31975056,2687.9,2687.5,1.793]
[1748523031934,1.5993,2687.9,2687.5,1.793]
[1748523032122,1.5993,2687.9,2687.5,5.51392138]
[1748523032323,5.028,2688.0,2687.5,1.793]
[1748523032633,5.026,2687.9,2687.6,3.72077498]
[1748523033128,5.026,2687.8,2687.5,3.72085865]
[1748523033727,5.026,2687.8,2687.5,4.08738309]
[1748523033952,5.026,2687.8,2687.2,1.793]
[1748523033953,5.026,2687.8,2687.4,3.72101143]
[1748523034569,8.74658105,2687.8,2687.2,5.51428497]
[1748523035328,5.023,2687.7,2687.5,3.72086566]
[1748523035522,5.023,2687.8,2687.2,1.793]
[1748523035838,5.022,2687.8,2687.6,3.72073255]
[1748523036275,3.71954621,2688.5,2688.0,3.7201761]